[Event "EYCC G10-ch 2024"]
[Site "Prague"]
[Date "2024.08.23"]
[Round "2.1"]
[White "Bakhshi, Rana"]
[Black "Volani, Olga"]
[Result "1/2-1/2"]
[ECO "D31"]
[WhiteElo "1732"]
[BlackElo "1570"]
[Annotator "NA"]
[PlyCount "106"]
[EventDate "2024.08.19"]
[EventType "swiss"]
[EventCountry "CZE"]
[SourceTitle "playchess.com"]
[Source "ChessBase"]
[SourceQuality "1"]
[TimeControl "5400+30"]

1. d4 {[%emt 0:00:12]} d5 {[%emt 0:00:21]} 2. c4 {[%emt 0:00:15]} e6 {[%emt 0:00:07]} 3. Nc3 {[%emt 0:00:28]} Be7 {[%emt 0:00:14]} 4. Nf3 {[%emt 0:00:19]} Nf6 {[%emt 0:00:37]} 5. Bg5 {[%emt 0:00:47]} O-O {[%emt 0:00:42]} 6. cxd5 {[%emt 0:01:02]} exd5 {[%emt 0:00:22]} 7. e3 {[%emt 0:00:59]} c6 {[%emt 0:01:04]} 8. Bd3 {[%emt 0:00:58]} h6 {[%emt 0:05:06]} 9. Bf4 {[%emt 0:04:28]} Be6 {[%emt 0:07:42]} 10. Qc2 {[%emt 0:06:40]} Nbd7 {[%emt 0:02:28]} 11. O-O-O {[%emt 0:04:11]} c5 {[%emt 0:04:01]} 12. h3 {[%emt 0:04:15]} c4 {[%emt 0:03:43]} 13. Be2 {[%emt 0:02:56]} a6 {[%emt 0:05:39]} 14. g4 {[%emt 0:01:38]} b5 {[%emt 0:02:37]} 15. g5 {[%emt 0:01:46]} hxg5 {[%emt 0:02:53]} 16. Nxg5 {[%emt 0:00:26]} b4 {[%emt 0:01:36]} 17. Nxe6 {[%emt 0:05:01]} fxe6 {[%emt 0:00:03]} 18. Na4 {[%emt 0:02:44]} Rc8 {[%emt 0:09:52]} 19. Kb1 {[%emt 0:06:48]} Nb6 {[%emt 0:04:49]} 20. Rdg1 {[%emt 0:09:22]} Rf7 {[%emt 0:04:13]} 21. Nxb6 {[%emt 0:07:46]} Qxb6 {[%emt 0:00:03]} 22. Rg2 {[%emt 0:01:50]} Bf8 {[%emt 0:04:42]} 23. h4 {[%emt 0:02:53]} Qb7 {[%emt 0:06:03]} 24. h5 {[%emt 0:00:53]} b3 {[%emt 0:11:03]} 25. axb3 Qxb3 {[%emt 0:06:25]} 26. Qxb3 {[%emt 0:02:38]} cxb3 {[%emt 0:00:04]} 27. Bxa6 {[%emt 0:00:21]} Ra8 {[%emt 0:00:26]} 28. Bd3 {[%emt 0:01:01]} Rfa7 {[%emt 0:00:14]} 29. Kc1 {[%emt 0:01:03]} Ra1+ {[%emt 0:02:33]} 30. Bb1 {[%emt 0:00:09]} Rc8+ {[%emt 0:00:29]} 31. Kd2 {[%emt 0:00:46]} Ne4+ {[%emt 0:03:29]} 32. Ke2 {[%emt 0:01:45]} Kf7 {[%emt 0:07:22]} 33. f3 {[%emt 0:00:44]} Rxb1 {[%emt 0:00:49]} 34. Rxb1 {[%emt 0:00:04]} Rc2+ {[%emt 0:00:09]} 35. Kd3 {[%emt 0:02:05]} Rxg2 {[%emt 0:02:00]} 36. fxe4 {[%emt 0:00:09]} dxe4+ {[%emt 0:00:44]} 37. Kxe4 {[%emt 0:00:34]} Rc2 {[%emt 0:00:37]} 38. Bg3 {[%emt 0:02:08]} Bb4 {[%emt 0:00:57]} 39. Kd3 {[%emt 0:03:37]} Bd2 {[%emt 0:01:48]} 40. Be5 {[%emt 0:01:26]} Bc1 {[%emt 0:01:16]} 41. e4 {[%emt 0:02:30]} Bxb2 {[%emt 0:00:26]} 42. Rf1+ {[%emt 0:00:55]} Kg8 {[%emt 0:01:03]} 43. Rg1 {[%emt 0:02:45]} Rc3+ {[%emt 0:00:21]} 44. Ke2 {[%emt 0:01:02]} Rc2+ {[%emt 0:00:10]} 45. Kf3 {[%emt 0:01:24]} Rc3+ {[%emt 0:00:14]} 46. Kg4 {[%emt 0:01:38]} Rd3 {[%emt 0:00:55]} 47. Kf4 {[%emt 0:01:12]} Bxd4 {[%emt 0:00:33]} 48. Rxg7+ {[%emt 0:00:26]} Kh8 {[%emt 0:00:41]} 49. Bxd4 {[%emt 0:00:11]} Rxd4 {[%emt 0:00:07]} 50. Rb7 {[%emt 0:00:06]} Rd3 {[%emt 0:00:26]} 51. Ke5 {[%emt 0:02:32]} Rh3 {[%emt 0:00:49]} 52. Kxe6 {[%emt 0:00:20]} Rxh5 {[%emt 0:00:17]} 53. Rxb3 {[%emt 0:00:15]} Rh6+ {[%emt 0:01:00]} 1/2-1/2

[Event "EYCC G10-ch 2024"]
[Site "Prague"]
[Date "2024.08.23"]
[Round "2.2"]
[White "Macakova, Bianka"]
[Black "Chen, Yuefan"]
[Result "0-1"]
[ECO "B46"]
[WhiteElo "1568"]
[BlackElo "1682"]
[Annotator "NA"]
[PlyCount "104"]
[EventDate "2024.08.19"]
[EventType "swiss"]
[EventCountry "CZE"]
[SourceTitle "playchess.com"]
[Source "ChessBase"]
[SourceQuality "1"]
[TimeControl "5400+30"]

1. e4 {[%emt 0:00:01]} c5 {[%emt 0:00:05]} 2. Nf3 {[%emt 0:00:16]} e6 {[%emt 0:00:06]} 3. Nc3 {[%emt 0:02:28]} a6 {[%emt 0:01:07]} 4. d4 {[%emt 0:11:53]} cxd4 {[%emt 0:00:45]} 5. Nxd4 {[%emt 0:05:31]} Nc6 {[%emt 0:00:29]} 6. Be3 {[%emt 0:09:37]} Nf6 {[%emt 0:02:27]} 7. Be2 {[%emt 0:09:02]} Bb4 {[%emt 0:01:43]} 8. O-O {[%emt 0:08:46]} Bxc3 {[%emt 0:03:36]} 9. bxc3 {[%emt 0:02:28]} Nxe4 {[%emt 0:00:49]} 10. Nxc6 {[%emt 0:03:56]} bxc6 {[%emt 0:01:03]} 11. Bd4 {[%emt 0:04:41]} O-O {[%emt 0:01:56]} 12. Bd3 {[%emt 0:05:06]} Nf6 {[%emt 0:02:23]} 13. f4 {[%emt 0:04:44]} d6 {[%emt 0:01:09]} 14. Rf3 {[%emt 0:07:42]} Qe7 {[%emt 0:20:56]} 15. c4 {[%emt 0:07:31]} Bb7 {[%emt 0:04:37]} 16. Rh3 {[%emt 0:04:30]} h6 {[%emt 0:03:51]} 17. g4 {[%emt 0:04:56]} e5 {[%emt 0:18:39]} 18. fxe5 {[%emt 0:01:08]} dxe5 {[%emt 0:01:02]} 19. Be3 {[%emt 0:01:21]} Rad8 {[%emt 0:04:27]} 20. g5 {[%emt 0:03:08]} Qe6 {[%emt 0:03:47]} 21. Rh4 {[%emt 0:00:41]} hxg5 {[%emt 0:02:05]} 22. Bxg5 {[%emt 0:00:30]} e4 {[%emt 0:04:09]} 23. Bxf6 {[%emt 0:01:09]} Qxf6 {[%emt 0:00:35]} 24. Qh5 {[%emt 0:00:40]} Qxa1+ {[%emt 0:05:40]} 25. Kg2 {[%emt 0:00:23]} f6 {[%emt 0:01:37]} 26. Bxe4 {[%emt 0:00:39]} Rd2+ {[%emt 0:01:26]} 27. Kg3 {[%emt 0:00:20]} Qe5+ {[%emt 0:01:56]} 28. Kf3 {[%emt 0:00:27]} Qxh5+ {[%emt 0:00:38]} 29. Rxh5 {[%emt 0:00:10]} Rd4 {[%emt 0:00:33]} 30. Ke3 {[%emt 0:00:49]} Rxc4 {[%emt 0:00:19]} 31. Bf5 {[%emt 0:00:25]} Bc8 {[%emt 0:00:15]} 32. Kd3 {[%emt 0:00:23]} Ra4 {[%emt 0:00:50]} 33. Be4 {[%emt 0:00:30]} Bd7 {[%emt 0:00:58]} 34. Rh4 {[%emt 0:00:49]} Rxa2 {[%emt 0:00:34]} 35. Kc3 {[%emt 0:00:27]} Ra3+ {[%emt 0:00:08]} 36. Kb2 {[%emt 0:00:12]} Rh3 {[%emt 0:00:18]} 37. Rxh3 {[%emt 0:00:24]} Bxh3 {[%emt 0:00:00]} 38. Bxc6 {[%emt 0:00:00]} Rd8 {[%emt 0:00:00]} 39. c4 {[%emt 0:00:00]} Be6 {[%emt 0:00:06]} 40. Kc3 {[%emt 0:00:06]} Rc8 {[%emt 0:00:10]} 41. Bb7 {[%emt 0:00:12]} Rxc4+ {[%emt 0:00:07]} 42. Kd3 {[%emt 0:00:24]} Ra4 {[%emt 0:00:25]} 43. Bc6 {[%emt 0:00:25]} Ra2 {[%emt 0:00:11]} 44. h4 {[%emt 0:00:25]} Rh2 {[%emt 0:00:08]} 45. Ke3 {[%emt 0:00:23]} Rxh4 {[%emt 0:00:10]} 46. Be8 {[%emt 0:00:30]} a5 {[%emt 0:00:28]} 47. Kf3 {[%emt 0:00:24]} a4 {[%emt 0:00:11]} 48. Bxa4 {[%emt 0:00:24]} Rxa4 {[%emt 0:00:04]} 49. Kg3 {[%emt 0:00:07]} g5 {[%emt 0:00:19]} 50. Kf3 {[%emt 0:00:16]} g4+ {[%emt 0:00:06]} 51. Kg3 {[%emt 0:00:06]} Ra3+ {[%emt 0:00:04]} 52. Kh4 {[%emt 0:00:08]} Rh3# {[%emt 0:00:08]} 0-1

[Event "EYCC G10-ch 2024"]
[Site "Prague"]
[Date "2024.08.23"]
[Round "2.3"]
[White "Hatuk, Neris"]
[Black "Milojevic, Dunja"]
[Result "1/2-1/2"]
[ECO "B22"]
[WhiteElo "1671"]
[BlackElo "1568"]
[Annotator "NA"]
[PlyCount "150"]
[EventDate "2024.08.19"]
[EventType "swiss"]
[EventCountry "CZE"]
[SourceTitle "playchess.com"]
[Source "ChessBase"]
[SourceQuality "1"]
[TimeControl "5400+30"]

1. e4 c5 {[%emt 0:00:06]} 2. c3 {[%emt 0:00:04]} Nf6 {[%emt 0:00:08]} 3. e5 {[%emt 0:00:04]} Nd5 {[%emt 0:00:05]} 4. d4 {[%emt 0:00:02]} cxd4 {[%emt 0:00:08]} 5. Nf3 {[%emt 0:00:06]} e6 {[%emt 0:00:32]} 6. cxd4 {[%emt 0:00:03]} d6 {[%emt 0:00:24]} 7. Bc4 {[%emt 0:00:59]} Be7 {[%emt 0:00:25]} 8. Bxd5 {[%emt 0:00:22]} exd5 {[%emt 0:00:08]} 9. Nc3 {[%emt 0:00:06]} Be6 {[%emt 0:00:57]} 10. O-O {[%emt 0:04:48]} O-O {[%emt 0:02:46]} 11. h3 {[%emt 0:03:38]} Nc6 {[%emt 0:01:45]} 12. Bf4 {[%emt 0:02:01]} dxe5 {[%emt 0:02:44]} 13. Nxe5 {[%emt 0:00:20]} Rc8 {[%emt 0:02:34]} 14. Re1 {[%emt 0:02:56]} Nxe5 {[%emt 0:02:37]} 15. Bxe5 {[%emt 0:00:08]} Bf6 {[%emt 0:01:47]} 16. Bg3 {[%emt 0:01:08]} Qb6 {[%emt 0:01:23]} 17. Be5 {[%emt 0:02:09]} Bxe5 {[%emt 0:03:55]} 18. Rxe5 {[%emt 0:00:24]} Qxb2 {[%emt 0:03:44]} 19. Nxd5 {[%emt 0:03:33]} Rc2 {[%emt 0:04:48]} 20. Rb1 {[%emt 0:00:10]} Rd2 {[%emt 0:02:10]} 21. Rxb2 {[%emt 0:25:03]} Rxd1+ {[%emt 0:00:07]} 22. Kh2 {[%emt 0:00:04]} Rxd4 {[%emt 0:07:05]} 23. Ne7+ {[%emt 0:00:06]} Kh8 {[%emt 0:00:08]} 24. Rxb7 {[%emt 0:00:05]} Ra4 {[%emt 0:01:21]} 25. Reb5 {[%emt 0:01:54]} g6 {[%emt 0:03:24]} 26. Rb2 {[%emt 0:02:42]} Bxa2 {[%emt 0:03:12]} 27. Rc2 {[%emt 0:02:06]} Rd8 {[%emt 0:02:27]} 28. Rcc7 {[%emt 0:03:40]} Rd2 {[%emt 0:02:10]} 29. Kg3 {[%emt 0:00:48]} Ra3+ {[%emt 0:00:31]} 30. f3 {[%emt 0:00:17]} Re3 {[%emt 0:01:22]} 31. Kf4 {[%emt 0:04:04]} Red3 {[%emt 0:03:30]} 32. Rxa7 {[%emt 0:04:59]} Rxg2 {[%emt 0:02:41]} 33. Ra6 {[%emt 0:14:22]} g5+ {[%emt 0:04:26]} 34. Ke4 {[%emt 0:04:21]} Rd8 {[%emt 0:05:01]} 35. Kf5 {[%emt 0:14:09]} Kg7 {[%emt 0:03:00]} 36. Rb6 {[%emt 0:06:13]} Be6+ {[%emt 0:03:48]} 37. Rxe6 {[%emt 0:00:30]} fxe6+ 38. Kxe6 {[%emt 0:00:00]} Re8 {[%emt 0:00:56]} 39. Kf5 {[%emt 0:00:19]} Rf8+ {[%emt 0:00:51]} 40. Ke4 {[%emt 0:00:38]} Rf4+ {[%emt 0:01:25]} 41. Ke3 {[%emt 0:00:29]} Rf7 {[%emt 0:01:17]} 42. Nf5+ {[%emt 0:00:45]} Kf6 {[%emt 0:00:30]} 43. Rxf7+ {[%emt 0:00:32]} Kxf7 {[%emt 0:00:03]} 44. Nd6+ {[%emt 0:00:06]} Ke6 {[%emt 0:00:10]} 45. Ne4 {[%emt 0:00:08]} h6 {[%emt 0:01:06]} 46. f4 {[%emt 0:00:18]} Kf5 {[%emt 0:00:34]} 47. Kf3 {[%emt 0:01:00]} Rh2 {[%emt 0:00:59]} 48. Ng3+ {[%emt 0:00:45]} Kg6 {[%emt 0:00:33]} 49. fxg5 {[%emt 0:01:03]} Kxg5 {[%emt 0:00:23]} 50. Ne4+ {[%emt 0:00:13]} Kh4 {[%emt 0:00:53]} 51. Nf2 {[%emt 0:00:18]} h5 {[%emt 0:02:10]} 52. Ke3 {[%emt 0:00:29]} Kg3 {[%emt 0:01:09]} 53. Ne4+ {[%emt 0:00:15]} Kxh3 {[%emt 0:00:11]} 54. Ng5+ {[%emt 0:00:16]} Kg4 {[%emt 0:00:21]} 55. Ne4 {[%emt 0:00:04]} Rh3+ {[%emt 0:00:33]} 56. Ke2 {[%emt 0:00:08]} Kf4 {[%emt 0:00:17]} 57. Nf2 {[%emt 0:00:12]} Re3+ {[%emt 0:00:27]} 58. Kf1 {[%emt 0:00:08]} h4 {[%emt 0:01:13]} 59. Kg2 {[%emt 0:00:06]} Rg3+ {[%emt 0:00:11]} 60. Kh2 {[%emt 0:00:13]} Kf3 {[%emt 0:00:27]} 61. Nd3 {[%emt 0:00:55]} Rg8 {[%emt 0:01:25]} 62. Kh3 {[%emt 0:00:35]} Rh8 {[%emt 0:01:00]} 63. Ne5+ {[%emt 0:00:18]} Ke4 64. Nf7 {[%emt 0:02:40]} Rf8 {[%emt 0:01:49]} 65. Ng5+ {[%emt 0:00:23]} Kf5 {[%emt 0:00:20]} 66. Nf3 {[%emt 0:00:17]} Kf4 {[%emt 0:00:35]} 67. Nd4 {[%emt 0:00:16]} Rg8 {[%emt 0:00:28]} 68. Ne2+ {[%emt 0:01:25]} Ke3 {[%emt 0:00:13]} 69. Nc3 {[%emt 0:00:08]} Kd3 {[%emt 0:00:23]} 70. Nd5 {[%emt 0:00:07]} Rh8 {[%emt 0:00:41]} 71. Nf4+ {[%emt 0:00:21]} Ke4 {[%emt 0:00:08]} 72. Ne2 {[%emt 0:00:27]} Kf3 {[%emt 0:00:28]} 73. Nd4+ {[%emt 0:00:05]} Kf2 {[%emt 0:00:06]} 74. Nf5 {[%emt 0:00:22]} Kf3 {[%emt 0:00:18]} 75. Nd4+ {[%emt 0:00:06]} Ke4 1/2-1/2

[Event "EYCC G10-ch 2024"]
[Site "Prague"]
[Date "2024.08.23"]
[Round "2.4"]
[White "Ahmadli, Mehriban"]
[Black "Jaksa, Ema"]
[Result "1-0"]
[ECO "C88"]
[WhiteElo "1646"]
[BlackElo "1551"]
[Annotator "NA RC"]
[PlyCount "89"]
[EventDate "2024.08.19"]
[EventType "swiss"]
[EventCountry "CZE"]
[SourceTitle "playchess.com"]
[Source "ChessBase"]
[SourceQuality "1"]
[TimeControl "5400+30"]

1. e4 {[%emt 0:00:04]} e5 {[%emt 0:00:17]} 2. Nf3 {[%emt 0:00:09]} Nc6 {[%emt 0:00:19]} 3. Bb5 {[%emt 0:00:09]} a6 {[%emt 0:00:30]} 4. Ba4 {[%emt 0:00:01]} Nf6 {[%emt 0:00:26]} 5. O-O {[%emt 0:00:10]} Be7 {[%emt 0:01:14]} 6. Re1 {[%emt 0:02:14]} b5 {[%emt 0:00:42]} 7. Bb3 {[%emt 0:00:02]} d6 {[%emt 0:00:55]} 8. h3 {[%emt 0:00:29]} Na5 {[%emt 0:00:55]} 9. c3 {[%emt 0:04:57]} Nxb3 {[%emt 0:00:37]} 10. Qxb3 {[%emt 0:02:19]} c5 {[%emt 0:01:43]} 11. d4 {[%emt 0:03:49]} Qc7 {[%emt 0:02:30]} 12. Nbd2 {[%emt 0:11:07]} Be6 {[%emt 0:02:09]} 13. d5 {[%emt 0:01:55]} Bd7 {[%emt 0:01:34]} 14. Nf1 {[%emt 0:01:58]} O-O {[%emt 0:01:20]} 15. Bg5 {[%emt 0:02:45]} h6 {[%emt 0:02:14]} 16. Bxf6 {[%emt 0:00:26]} Bxf6 17. Ng3 Be7 {[%emt 0:03:43]} 18. a3 {[%emt 0:08:51]} f5 {[%emt 0:01:14]} 19. exf5 {[%emt 0:01:54]} Bxf5 {[%emt 0:00:17]} 20. Nxf5 {[%emt 0:02:05]} Rxf5 {[%emt 0:00:38]} 21. c4 {[%emt 0:03:27]} Rb8 {[%emt 0:03:14]} 22. cxb5 {[%emt 0:02:16]} axb5 {[%emt 0:01:03]} 23. Rac1 {[%emt 0:06:18]} c4 {[%emt 0:01:04]} 24. Qc3 {[%emt 0:12:33]} Rbf8 {[%emt 0:01:54]} 25. a4 {[%emt 0:05:20]} Qd7 {[%emt 0:00:57]} 26. Kh2 {[%emt 0:03:54]} Bg5 {[%emt 0:00:46]} 27. Nxg5 {[%emt 0:04:32]} Rxg5 {[%emt 0:00:30]} 28. f3 {[%emt 0:01:09]} Qf5 {[%emt 0:01:19]} 29. Qe3 {[%emt 0:00:53]} Rf6 {[%emt 0:00:57]} 30. axb5 {[%emt 0:04:17]} h5 {[%emt 0:00:58]} 31. Qe4 {[%emt 0:02:34]} Qd7 {[%emt 0:00:55]} 32. Qxc4 {[%emt 0:02:22]} Qf7 {[%emt 0:01:32]} 33. b6 {[%emt 0:04:57]} Rxf3 {[%emt 0:01:26]} 34. gxf3 {[%emt 0:06:21]} Qxf3 {[%emt 0:00:11]} 35. Qf1 {[%emt 0:00:14]} Qg3+ {[%emt 0:02:34]} 36. Kh1 {[%emt 0:00:02]} Qb3 {[%emt 0:00:29]} 37. Rc3 Qxd5+ {[%emt 0:00:42]} 38. Qf3 {[%emt 0:01:30]} Qe6 {[%emt 0:01:10]} 39. Rf1 {[%emt 0:00:35]} Qg6 {[%emt 0:00:25]} 40. Qf7+ {[%emt 0:00:37]} Qxf7 {[%emt 0:00:52]} 41. Rc8+ {[%emt 0:00:33]} Kh7 {[%emt 0:01:02]} 42. Rxf7 {[%emt 0:00:01]} e4 {[%emt 0:00:14]} 43. b7 {[%emt 0:00:13]} e3 {[%emt 0:00:04]} 44. b8=Q {[%emt 0:00:19]} e2 {[%emt 0:00:08]} 45. Re7 {[%emt 0:00:46]} 1-0

[Event "EYCC G10-ch 2024"]
[Site "Prague"]
[Date "2024.08.23"]
[Round "2.5"]
[White "Bjerregaard Hagen, Frida"]
[Black "Constantin-Ciuntu, Anne-Sophie"]
[Result "1-0"]
[ECO "D02"]
[WhiteElo "1556"]
[BlackElo "1641"]
[Annotator "NA"]
[PlyCount "111"]
[EventDate "2024.08.19"]
[EventType "swiss"]
[EventCountry "CZE"]
[SourceTitle "playchess.com"]
[Source "ChessBase"]
[SourceQuality "1"]
[TimeControl "5400+30"]

1. d4 {[%emt 0:00:02]} d5 {[%emt 0:00:06]} 2. Nf3 {[%emt 0:00:13]} e6 {[%emt 0:00:06]} 3. e3 {[%emt 0:00:13]} c6 {[%emt 0:00:05]} 4. Be2 {[%emt 0:00:12]} Bd6 {[%emt 0:00:09]} 5. O-O {[%emt 0:00:19]} f5 {[%emt 0:00:07]} 6. b3 {[%emt 0:00:28]} Nf6 {[%emt 0:00:08]} 7. Ba3 {[%emt 0:00:44]} O-O {[%emt 0:01:01]} 8. Bxd6 {[%emt 0:00:20]} Qxd6 {[%emt 0:00:03]} 9. c4 {[%emt 0:01:03]} Nbd7 {[%emt 0:00:59]} 10. Nc3 {[%emt 0:01:24]} Ne4 {[%emt 0:01:02]} 11. Qc2 {[%emt 0:01:41]} Qe7 {[%emt 0:03:49]} 12. Nd2 {[%emt 0:03:23]} Qg5 {[%emt 0:04:18]} 13. f4 {[%emt 0:04:11]} Qg6 {[%emt 0:06:18]} 14. Rf3 {[%emt 0:03:57]} Rf6 {[%emt 0:08:08]} 15. Ndxe4 {[%emt 0:03:39]} fxe4 {[%emt 0:00:32]} 16. Rg3 {[%emt 0:01:01]} Qf7 {[%emt 0:02:13]} 17. Rf1 {[%emt 0:01:52]} Nf8 {[%emt 0:09:25]} 18. Nd1 {[%emt 0:03:30]} h5 {[%emt 0:07:21]} 19. h4 {[%emt 0:03:30]} Kh8 {[%emt 0:03:58]} 20. Nf2 {[%emt 0:03:52]} g6 {[%emt 0:03:35]} 21. Nh3 {[%emt 0:01:13]} Nh7 {[%emt 0:00:54]} 22. Ng5 {[%emt 0:01:44]} Nxg5 {[%emt 0:00:44]} 23. hxg5 {[%emt 0:00:23]} Rf5 {[%emt 0:00:13]} 24. Rh3 {[%emt 0:00:52]} Qe8 {[%emt 0:06:50]} 25. g4 {[%emt 0:02:24]} Rf8 {[%emt 0:00:44]} 26. Rh2 {[%emt 0:01:54]} Kg7 {[%emt 0:05:06]} 27. gxh5 {[%emt 0:00:54]} Rh8 {[%emt 0:01:57]} 28. h6+ {[%emt 0:01:35]} Kh7 {[%emt 0:00:23]} 29. b4 {[%emt 0:00:59]} a6 {[%emt 0:02:10]} 30. cxd5 {[%emt 0:02:19]} exd5 {[%emt 0:00:51]} 31. Qc5 {[%emt 0:00:50]} Qd8 {[%emt 0:02:59]} 32. Rff2 {[%emt 0:01:37]} Bf5 {[%emt 0:02:53]} 33. Rfg2 {[%emt 0:02:56]} Qd7 {[%emt 0:01:26]} 34. Rh4 {[%emt 0:01:11]} Rhf8 {[%emt 0:03:46]} 35. Bg4 {[%emt 0:01:03]} Qc7 {[%emt 0:00:37]} 36. a4 {[%emt 0:02:58]} Rf7 {[%emt 0:03:43]} 37. Kh2 {[%emt 0:01:06]} Rff8 {[%emt 0:02:10]} 38. Rc2 {[%emt 0:00:24]} Bxg4 {[%emt 0:02:30]} 39. Rxg4 {[%emt 0:00:14]} Qd7 {[%emt 0:00:06]} 40. Rg3 {[%emt 0:01:23]} Rf7 {[%emt 0:00:53]} 41. Rg1 {[%emt 0:01:14]} Rc8 {[%emt 0:01:05]} 42. b5 {[%emt 0:00:53]} axb5 {[%emt 0:01:27]} 43. axb5 {[%emt 0:00:25]} Rff8 {[%emt 0:00:38]} 44. Rb2 {[%emt 0:01:56]} cxb5 {[%emt 0:01:23]} 45. Qxb5 {[%emt 0:02:05]} Rc2+ {[%emt 0:00:36]} 46. Kg3 {[%emt 0:00:50]} Qxb5 {[%emt 0:04:02]} 47. Rxb5 {[%emt 0:00:17]} Rd8 {[%emt 0:01:34]} 48. Rxb7+ {[%emt 0:00:35]} Kh8 {[%emt 0:00:09]} 49. Rg7 {[%emt 0:01:09]} Rg8 {[%emt 0:00:59]} 50. Rd7 {[%emt 0:00:39]} Rgc8 {[%emt 0:01:10]} 51. f5 {[%emt 0:02:31]} Rg8 {[%emt 0:02:46]} 52. Ra1 {[%emt 0:01:23]} Rcc8 {[%emt 0:02:14]} 53. Raa7 {[%emt 0:00:58]} Rge8 {[%emt 0:00:17]} 54. Rh7+ {[%emt 0:01:32]} Kg8 {[%emt 0:00:11]} 55. Rag7+ {[%emt 0:00:39]} Kf8 {[%emt 0:00:04]} 56. Rh8# 1-0

[Event "EYCC G10-ch 2024"]
[Site "Prague"]
[Date "2024.08.23"]
[Round "2.6"]
[White "Anistoroaei, Maria"]
[Black "Rekhviashvili, Mariam"]
[Result "1-0"]
[ECO "D37"]
[WhiteElo "1627"]
[BlackElo "1542"]
[Annotator "NA"]
[PlyCount "99"]
[EventDate "2024.08.19"]
[EventType "swiss"]
[EventCountry "CZE"]
[SourceTitle "playchess.com"]
[Source "ChessBase"]
[SourceQuality "1"]
[TimeControl "5400+30"]

1. d4 {[%emt 0:00:28]} d5 {[%emt 0:00:18]} 2. c4 {[%emt 0:00:05]} e6 {[%emt 0:00:04]} 3. Nc3 {[%emt 0:00:04]} Nf6 {[%emt 0:00:08]} 4. Nf3 {[%emt 0:01:53]} Be7 {[%emt 0:00:06]} 5. Bf4 {[%emt 0:00:13]} O-O {[%emt 0:00:21]} 6. e3 {[%emt 0:00:06]} c6 {[%emt 0:02:08]} 7. c5 {[%emt 0:03:09]} Bd7 {[%emt 0:07:40]} 8. Bd3 {[%emt 0:02:31]} b6 {[%emt 0:00:38]} 9. b4 {[%emt 0:00:23]} a5 {[%emt 0:00:55]} 10. a3 {[%emt 0:00:10]} Na6 {[%emt 0:12:44]} 11. Qb1 {[%emt 0:04:33]} axb4 {[%emt 0:20:46]} 12. Bxa6 {[%emt 0:09:35]} Rxa6 {[%emt 0:03:40]} 13. axb4 {[%emt 0:00:15]} Rxa1 {[%emt 0:00:19]} 14. Qxa1 {[%emt 0:00:10]} bxc5 {[%emt 0:00:15]} 15. bxc5 {[%emt 0:00:21]} Qa8 {[%emt 0:02:12]} 16. O-O {[%emt 0:00:36]} h6 {[%emt 0:03:30]} 17. h3 {[%emt 0:01:39]} g5 {[%emt 0:16:43]} 18. Bh2 {[%emt 0:01:17]} Kg7 {[%emt 0:10:44]} 19. Qb2 {[%emt 0:10:07]} g4 {[%emt 0:06:49]} 20. hxg4 {[%emt 0:01:14]} Nxg4 {[%emt 0:00:05]} 21. Bg3 {[%emt 0:00:20]} h5 {[%emt 0:01:38]} 22. Ra1 {[%emt 0:01:12]} Qd8 {[%emt 0:00:36]} 23. Ra7 {[%emt 0:01:42]} Bc8 {[%emt 0:00:47]} 24. Qb6 {[%emt 0:08:38]} Qe8 {[%emt 0:03:39]} 25. Rc7 {[%emt 0:04:50]} Bd7 {[%emt 0:03:29]} 26. Qb7 {[%emt 0:01:28]} Bc8 {[%emt 0:00:18]} 27. Qxc6 {[%emt 0:00:42]} Qxc6 {[%emt 0:00:04]} 28. Rxc6 {[%emt 0:00:17]} Bd7 {[%emt 0:00:39]} 29. Rc7 {[%emt 0:00:51]} h4 {[%emt 0:00:40]} 30. Bf4 {[%emt 0:03:21]} Ra8 {[%emt 0:00:48]} 31. Kf1 {[%emt 0:01:01]} Ra1+ {[%emt 0:00:41]} 32. Ke2 {[%emt 0:01:29]} Ra3 {[%emt 0:00:47]} 33. Rxd7 {[%emt 0:00:37]} Bf6 {[%emt 0:00:42]} 34. Nb5 {[%emt 0:01:55]} Ra2+ {[%emt 0:00:09]} 35. Nd2 {[%emt 0:00:19]} Nxf2 {[%emt 0:01:26]} 36. Kxf2 {[%emt 0:01:48]} Rxd2+ {[%emt 0:00:05]} 37. Kf3 {[%emt 0:00:32]} Rd1 {[%emt 0:00:32]} 38. c6 {[%emt 0:00:55]} Rf1+ {[%emt 0:00:10]} 39. Ke2 {[%emt 0:00:12]} Rg1 {[%emt 0:00:06]} 40. c7 {[%emt 0:01:02]} Rxg2+ {[%emt 0:00:04]} 41. Kd3 h3 {[%emt 0:01:15]} 42. c8=Q {[%emt 0:00:38]} Bg5 {[%emt 0:00:18]} 43. Qc7 {[%emt 0:00:41]} h2 {[%emt 0:01:11]} 44. Rxf7+ {[%emt 0:00:17]} Kg6 {[%emt 0:00:05]} 45. Rg7+ {[%emt 0:00:12]} Kh5 {[%emt 0:00:19]} 46. Qf7+ {[%emt 0:00:24]} Kg4 {[%emt 0:00:13]} 47. Bxh2 {[%emt 0:01:18]} Rxh2 {[%emt 0:01:47]} 48. Qf4+ Kh3 49. Rxg5 {[%emt 0:00:39]} Rg2 {[%emt 0:01:28]} 50. Rh5# 1-0

[Event "EYCC G10-ch 2024"]
[Site "Prague"]
[Date "2024.08.23"]
[Round "2.7"]
[White "Aragonda, Sahasra"]
[Black "Stricova, Viktoria Lea"]
[Result "1-0"]
[ECO "D04"]
[WhiteElo "1617"]
[BlackElo "1527"]
[Annotator "NA RC"]
[PlyCount "59"]
[EventDate "2024.08.19"]
[EventType "swiss"]
[EventCountry "CZE"]
[SourceTitle "playchess.com"]
[Source "ChessBase"]
[SourceQuality "1"]
[TimeControl "5400+30"]

1. d4 {[%emt 0:00:03]} d5 {[%emt 0:00:20]} 2. Nf3 {[%emt 0:00:06]} Nf6 {[%emt 0:00:33]} 3. e3 {[%emt 0:00:07]} c5 {[%emt 0:01:14]} 4. b3 {[%emt 0:00:22]} cxd4 {[%emt 0:00:51]} 5. exd4 {[%emt 0:00:20]} Bg4 {[%emt 0:03:09]} 6. Nbd2 {[%emt 0:01:09]} e6 {[%emt 0:03:25]} 7. Bb2 {[%emt 0:00:50]} Bd6 {[%emt 0:03:52]} 8. Be2 {[%emt 0:03:14]} O-O {[%emt 0:09:59]} 9. O-O {[%emt 0:02:51]} Nc6 {[%emt 0:06:55]} 10. Ne5 {[%emt 0:02:57]} Bxe2 {[%emt 0:03:31]} 11. Qxe2 {[%emt 0:00:17]} Rc8 {[%emt 0:08:36]} 12. a3 {[%emt 0:04:57]} Qc7 {[%emt 0:11:43]} 13. f4 {[%emt 0:01:55]} Qb6 {[%emt 0:02:28]} 14. Ndf3 {[%emt 0:06:38]} Rc7 {[%emt 0:09:18]} 15. Qd3 {[%emt 0:09:47]} Rfc8 {[%emt 0:04:56]} 16. Rac1 {[%emt 0:10:02]} Ne4 {[%emt 0:04:24]} 17. c4 {[%emt 0:07:16]} Bxe5 {[%emt 0:07:42]} 18. fxe5 {[%emt 0:04:38]} a6 {[%emt 0:02:37]} 19. c5 {[%emt 0:01:03]} Qa7 {[%emt 0:01:01]} 20. Nd2 {[%emt 0:01:23]} Nxd2 {[%emt 0:02:03]} 21. Qxd2 {[%emt 0:00:08]} Rf8 {[%emt 0:00:59]} 22. b4 {[%emt 0:01:19]} Qa8 {[%emt 0:02:35]} 23. Qg5 {[%emt 0:02:17]} Qd8 {[%emt 0:03:11]} 24. Qg3 {[%emt 0:01:28]} f6 {[%emt 0:01:28]} 25. exf6 {[%emt 0:00:15]} Rcf7 {[%emt 0:01:23]} 26. fxg7 {[%emt 0:04:33]} Rxg7 {[%emt 0:00:30]} 27. Qh3 {[%emt 0:02:51]} Qg5 {[%emt 0:02:08]} 28. Qxe6+ {[%emt 0:00:39]} Rff7 {[%emt 0:01:57]} 29. Qe8+ {[%emt 0:00:38]} Rf8 {[%emt 0:01:24]} 30. Qe6+ 1-0